[Event "WYCC 2018 O14"]
[Site "Halkidiki"]
[Date "2018.10.22"]
[Round "4"]
[White "Galkin, Gleb"]
[Black "Spyropoulos, Nikolaos"]
[Result "1/2-1/2"]
[ECO "A46"]
[WhiteElo "2134"]
[BlackElo "2378"]
[Annotator "NA"]
[PlyCount "107"]
[EventDate "2018.10.20"]
[EventType "swiss"]
[EventCountry "GRE"]
[SourceTitle "playchess.com"]
[Source "ChessBase"]
[SourceQuality "1"]
[TimeControl "40/5400+30:1800+30"]

1. d4 {[%emt 0:00:00]} Nf6 {[%emt 0:00:00]} 2. Nf3 {[%emt 0:00:00]} e6 {[%emt 0:00:00]} 3. c4 {[%emt 0:00:00]} c5 {[%emt 0:00:00]} 4. Nc3 {[%emt 0:08:15]} cxd4 {[%emt 0:00:53]} 5. Nxd4 {[%emt 0:00:10]} Bb4 {[%emt 0:01:34]} 6. Bd2 {[%emt 0:04:46]} O-O {[%emt 0:06:26]} 7. e3 {[%emt 0:02:04] LiveBook: 47 Games} Nc6 {[%emt 0:08:36]} 8. Be2 {[%emt 0:02:20]} d5 {[%emt 0:03:33]} 9. cxd5 {[%emt 0:02:46]} exd5 {[%emt 0:08:20]} 10. O-O {[%emt 0:02:08] A32: Symmetrical English: 2 Nf3 Nf6 3 d4 cxd4 4 Nxd4 e6} a6 {[%emt 0:06:10]} (10... Nxd4 11. exd4 Re8 12. Bf3 Be6 13. Qb3 Bxc3 14. Bxc3 Qd7 15. Rfd1 Bg4 16. Bxg4 Nxg4 17. h3 Nf6 18. Bd2 Ne4 19. Be3 {0-1 (81) Fridman,D (2596)-Navara,D (2725) Tallinn 2016}) 11. Nxc6 {[%emt 0:10:04]} bxc6 {[%emt 0:00:10]} 12. Ne4 $146 {[%emt 0:05:12]} ({Predecessor:} 12. Rc1 Bd7 13. Na4 Qa5 14. Bxb4 Qxb4 15. a3 Qd6 16. Nb6 Rab8 17. Nxd7 Qxd7 {1-0 (62) Holleland,S (2001)-Njorge,M Durban 2014}) 12... Nxe4 {[%emt 0:08:48]} 13. Bxb4 {[%emt 0:00:08]} Re8 {[%emt 0:00:11]} 14. Bd3 {[%emt 0:06:29]} Qg5 {[%emt 0:03:07]} 15. Bxe4 {[%emt 0:10:56]} Rxe4 {[%emt 0:01:38]} 16. f4 {[%emt 0:01:10]} Qf6 {[%emt 0:05:05]} 17. Qd2 {[%emt 0:01:24]} Rb8 $11 {[%emt 0:00:43]} 18. Bc3 {[%emt 0:01:18]} Qe7 {[%emt 0:01:03]} 19. Be5 {[%emt 0:00:57]} Rb5 {[%emt 0:04:51]} 20. Rfc1 {[%emt 0:05:56]} Bd7 {[%emt 0:10:00]} 21. a4 {[%emt 0:02:39]} Rb3 {[%emt 0:05:03]} 22. Bd4 {[%emt 0:00:33]} h6 {[%emt 0:03:26]} 23. Qc2 {[%emt 0:05:31]} Rb8 {[%emt 0:04:11]} 24. Qc5 {[%emt 0:00:30]} Qd8 {[%emt 0:03:53]} 25. Rf1 {[%emt 0:02:08]} h5 {[%emt 0:03:40]} 26. b4 {[%emt 0:04:52]} h4 {[%emt 0:01:10]} 27. Ra2 {[%emt 0:02:31]} Rc8 {[%emt 0:02:43]} 28. Rb2 {[%emt 0:02:11]} Bf5 {[%emt 0:04:15]} 29. Qa7 {[%emt 0:01:41]} Qe8 {[%emt 0:01:06]} 30. Qxa6 {[%emt 0:04:30]} Ra8 {[%emt 0:00:38]} 31. Qb7 {[%emt 0:00:39]} Rxa4 {[%emt 0:00:04]} 32. b5 {[%emt 0:00:50]} Rxe3 {[%emt 0:03:05]} 33. Bxe3 {[%emt 0:02:34]} Qxe3+ {[%emt 0:00:03]} 34. Rbf2 {[%emt 0:00:13]} h3 {[%emt 0:01:41]} 35. g3 {[%emt 0:02:23]} cxb5 {[%emt 0:00:28]} 36. Qxd5 {[%emt 0:02:58]} g6 {[%emt 0:00:13]} 37. Qe5 {[%emt 0:02:05]} Qxe5 {[%emt 0:00:44]} 38. fxe5 {[%emt 0:00:06]} b4 {[%emt 0:00:43]} 39. Rf4 {[%emt 0:01:44]} Be6 {[%emt 0:00:42]} 40. Rb1 {[%emt 0:00:00]} Ra2 {[%emt 0:00:00]} 41. Rf2 {[%emt 0:04:48]} Ra4 {[%emt 0:02:29]} 42. Rf4 {[%emt 0:05:06]} Ra2 {[%emt 0:00:08]} 43. Rf2 {[%emt 0:01:15]} b3 {[%emt 0:00:25]} 44. Rxa2 {[%emt 0:01:59]} bxa2 {[%emt 0:01:09]} 45. Rb8+ {[%emt 0:00:53]} Kg7 {[%emt 0:00:55]} 46. Ra8 {[%emt 0:00:07]} Kh6 {[%emt 0:01:08]} 47. Kf2 {[%emt 0:00:40]} Kg5 {[%emt 0:00:08]} 48. Ke3 {[%emt 0:00:49]} Kf5 {[%emt 0:02:43]} 49. Kd4 {[%emt 0:00:38]} Bb3 {[%emt 0:01:32]} 50. Ra6 {[%emt 0:01:06]} Kg4 {[%emt 0:01:51]} 51. Ke3 {[%emt 0:00:15]} Bd5 {[%emt 0:01:02]} 52. Ra7 {[%emt 0:00:33]} Kf5 {[%emt 0:00:19]} 53. Kd4 {[%emt 0:00:09]} Be6 {[%emt 0:00:09]} 54. Ra5 {[%emt 0:01:02]} 1/2-1/2

[Event "WYCC 2018 O14"]
[Site "Halkidiki"]
[Date "2018.10.22"]
[Round "4"]
[White "Marn, Jan"]
[Black "Stoyanov, Tsvetan"]
[Result "0-1"]
[ECO "A43"]
[WhiteElo "2125"]
[BlackElo "2340"]
[Annotator "NA"]
[PlyCount "56"]
[EventDate "2018.10.20"]
[EventType "swiss"]
[EventCountry "GRE"]
[SourceTitle "playchess.com"]
[Source "ChessBase"]
[SourceQuality "1"]
[TimeControl "40/5400+30:1800+30"]

1. d4 {[%emt 0:00:00]} Nf6 {[%emt 0:00:00]} 2. c4 {[%emt 0:00:00]} c5 {[%emt 0:00:00]} 3. d5 {[%emt 0:00:00]} d6 {[%emt 0:00:00]} 4. Nc3 {[%emt 0:00:39]} g6 {[%emt 0:00:04]} 5. e4 {[%emt 0:00:16]} Bg7 {[%emt 0:00:03]} 6. f3 {[%emt 0:01:33]} O-O {[%emt 0:00:17]} 7. Bg5 {[%emt 0:00:08]} h6 {[%emt 0:00:12]} 8. Be3 {[%emt 0:00:11]} e6 {[%emt 0:00:26]} 9. Qd2 {[%emt 0:00:49]} exd5 {[%emt 0:00:42]} 10. cxd5 {[%emt 0:00:08]} Re8 {[%emt 0:00:04]} 11. Nge2 {[%emt 0:01:30]} Nbd7 {[%emt 0:02:24]} 12. Ng3 {[%emt 0:08:37]} h5 {[%emt 0:01:10]} 13. Bg5 {[%emt 0:11:31] A65: Modern Benoni: 6 e4} (13. Be2 a6 14. a4 Nh7 15. O-O h4 16. Nh1 f5 17. Nf2 Ne5 18. f4 Nf7 19. exf5 Bxf5 20. Rae1 Qd7 {½-½ (49) Ponomariov,R (2714)-Bacrot,E (2718) Beijing 2014}) 13... h4 {[%emt 0:02:20]} 14. Bxh4 $146 {[%emt 0:14:41]} ({Predecessor:} 14. Nge2 h3 15. gxh3 Ne5 16. Bg2 Bxh3 17. O-O Qd7 18. Ng3 Nh7 19. Bf4 Bxg2 20. Kxg2 {½-½ (58) Sachdev,T (2422)-Narayanan,S (2414) Pune 2014}) 14... Nxe4 {[%emt 0:03:22]} 15. Bxd8 {[%emt 0:06:08]} Nxd2+ {[%emt 0:02:14]} 16. Kxd2 {[%emt 0:00:07]} Rxd8 {[%emt 0:00:31]} 17. Be2 {[%emt 0:00:33]} Be5 {[%emt 0:17:37]} 18. Kc2 {[%emt 0:13:24]} Nb6 {[%emt 0:12:25]} 19. Rad1 {[%emt 0:01:48]} f5 {[%emt 0:07:46]} 20. Rhf1 {[%emt 0:10:00]} a6 {[%emt 0:04:40]} 21. f4 {[%emt 0:00:31]} Bf6 {[%emt 0:00:12]} 22. b3 {[%emt 0:02:35]} Bd7 {[%emt 0:01:20]} 23. Rh1 {[%emt 0:03:20]} Rac8 {[%emt 0:05:53]} 24. Bf3 {[%emt 0:06:55]} c4 {[%emt 0:07:46]} 25. b4 {[%emt 0:01:24]} Na4 {[%emt 0:00:07]} 26. Nge2 $19 {[%emt 0:06:29]} Re8 {[%emt 0:00:01]} 27. Kd2 {[%emt 0:00:12]} g5 {[%emt 0:03:11]} 28. g3 {[%emt 0:04:30]} Nxc3 {[%emt 0:00:35]} 0-1

[Event "WYCC 2018 O14"]
[Site "Halkidiki"]
[Date "2018.10.22"]
[Round "4"]
[White "Torngren, Gustav"]
[Black "Gharibyan, Mamikon"]
[Result "1/2-1/2"]
[ECO "E47"]
[WhiteElo "2107"]
[BlackElo "2314"]
[Annotator "NA"]
[PlyCount "103"]
[EventDate "2018.10.20"]
[EventType "swiss"]
[EventCountry "GRE"]
[SourceTitle "playchess.com"]
[Source "ChessBase"]
[SourceQuality "1"]
[TimeControl "40/5400+30:1800+30"]

1. d4 {[%emt 0:00:00]} Nf6 {[%emt 0:00:00]} 2. c4 {[%emt 0:00:11]} e6 {[%emt 0:00:00]} 3. Nc3 {[%emt 0:00:32]} Bb4 {[%emt 0:00:08]} 4. e3 {[%emt 0:00:10]} O-O {[%emt 0:00:47]} 5. Bd3 {[%emt 0:00:17]} c5 {[%emt 0:10:24]} 6. Nf3 {[%emt 0:05:05]} Bxc3+ {[%emt 0:04:51]} 7. bxc3 {[%emt 0:00:52]} d6 {[%emt 0:00:56]} 8. d5 {[%emt 0:04:49]} e5 {[%emt 0:01:18]} 9. Qc2 {[%emt 0:01:49]} Nbd7 {[%emt 0:06:15]} 10. O-O {[%emt 0:00:46]} Qe7 {[%emt 0:07:38]} 11. e4 {[%emt 0:05:52]} Re8 {[%emt 0:03:25]} 12. Nh4 {[%emt 0:05:57]} Nf8 {[%emt 0:02:11]} 13. g3 {[%emt 0:00:25]} h6 {[%emt 0:11:22]} 14. Bd2 {[%emt 0:10:01]} N8h7 {[%emt 0:14:22]} 15. f3 {[%emt 0:08:21]} Ng5 {[%emt 0:01:34]} 16. Rae1 $11 {[%emt 0:03:50]} Bh3 {[%emt 0:04:00]} 17. Rf2 {[%emt 0:02:56]} a6 {[%emt 0:06:30]} 18. a4 {[%emt 0:05:12]} Rab8 {[%emt 0:01:20]} 19. Rfe2 {[%emt 0:11:14]} Bd7 {[%emt 0:03:50]} 20. Bxg5 {[%emt 0:09:29]} hxg5 {[%emt 0:00:06]} 21. Ng2 {[%emt 0:00:12]} g6 {[%emt 0:01:49]} 22. Rb1 {[%emt 0:02:15]} b6 {[%emt 0:02:35]} 23. Ree1 {[%emt 0:01:28]} Rec8 {[%emt 0:02:33]} 24. Rb2 {[%emt 0:03:13]} Qd8 {[%emt 0:08:28]} 25. Reb1 {[%emt 0:00:22]} Be8 {[%emt 0:03:34]} 26. Bf1 {[%emt 0:00:20]} Kg7 {[%emt 0:00:11]} 27. Ne3 {[%emt 0:01:16]} Bd7 {[%emt 0:00:50]} 28. Ra1 {[%emt 0:01:44]} Qc7 {[%emt 0:00:45]} 29. Ra3 {[%emt 0:00:53]} Rh8 {[%emt 0:01:18]} 30. Qb1 {[%emt 0:00:14]} Rhc8 {[%emt 0:01:08]} 31. Qa1 {[%emt 0:02:24]} Kf8 {[%emt 0:00:40]} 32. Rab3 {[%emt 0:01:10]} Ke7 {[%emt 0:00:27]} 33. Rb1 {[%emt 0:00:04]} Qd8 {[%emt 0:00:34]} 34. Qa3 {[%emt 0:02:14]} Kf8 {[%emt 0:00:19]} 35. Qb2 {[%emt 0:00:23]} Bxa4 {[%emt 0:00:24]} 36. Rxb6 {[%emt 0:00:02]} Nd7 {[%emt 0:00:13]} 37. Rxb8 {[%emt 0:00:38]} Rxb8 {[%emt 0:00:04]} 38. Qa1 {[%emt 0:00:14]} Rxb1 {[%emt 0:00:09]} 39. Qxb1 {[%emt 0:00:01]} Nb6 {[%emt 0:01:02]} 40. Qa1 {[%emt 0:00:00]} a5 {[%emt 0:00:00]} 41. Bd3 {[%emt 0:03:02]} Qa8 {[%emt 0:01:34]} 42. Qb2 {[%emt 0:02:28]} Qa6 {[%emt 0:03:53]} 43. Kf2 {[%emt 0:02:20]} Ke7 {[%emt 0:01:20]} 44. Ke2 {[%emt 0:02:10]} Bd7 {[%emt 0:01:01]} 45. Kd2 {[%emt 0:00:32]} Kd8 {[%emt 0:01:05]} 46. Qa2 {[%emt 0:00:36]} Kc7 {[%emt 0:00:24]} 47. Nc2 {[%emt 0:01:02]} Qa8 {[%emt 0:01:39]} 48. Qa1 {[%emt 0:01:48]} a4 {[%emt 0:02:03]} 49. Na3 {[%emt 0:00:44]} Qh8 {[%emt 0:01:46]} 50. Qg1 {[%emt 0:00:22]} Qh6 {[%emt 0:02:45]} 51. g4 {[%emt 0:01:35]} f5 {[%emt 0:02:56]} 52. Qg2 {[%emt 0:04:24]} 1/2-1/2

[Event "WYCC 2018 O14"]
[Site "Halkidiki"]
[Date "2018.10.22"]
[Round "4"]
[White "Wang, Alex"]
[Black "Suleymanli, Aydin"]
[Result "1/2-1/2"]
[ECO "B17"]
[WhiteElo "2076"]
[BlackElo "2313"]
[Annotator "NA"]
[PlyCount "53"]
[EventDate "2018.10.20"]
[EventType "swiss"]
[EventCountry "GRE"]
[SourceTitle "playchess.com"]
[Source "ChessBase"]
[SourceQuality "1"]
[TimeControl "40/5400+30:1800+30"]

1. e4 {[%emt 0:00:00]} c6 {[%emt 0:00:00]} 2. d4 {[%emt 0:00:00]} d5 {[%emt 0:00:00]} 3. Nd2 {[%emt 0:00:00]} dxe4 {[%emt 0:00:00]} 4. Nxe4 {[%emt 0:00:00]} Nd7 {[%emt 0:00:05]} 5. Ng5 {[%emt 0:00:00]} Ngf6 {[%emt 0:00:27]} 6. Bd3 {[%emt 0:00:14]} e6 {[%emt 0:01:35]} 7. N1f3 {[%emt 0:00:21]} Bd6 {[%emt 0:00:38]} 8. Qe2 {[%emt 0:00:28]} h6 {[%emt 0:01:33]} 9. Ne4 {[%emt 0:00:12]} Nxe4 {[%emt 0:03:29]} 10. Qxe4 {[%emt 0:00:05]} Nf6 {[%emt 0:15:13]} 11. Qh4 {[%emt 0:01:12]} Qa5+ {[%emt 0:01:56] B17: Caro-Kann: Modern Line (4...Nd7)} 12. Bd2 {[%emt 0:06:09]} Qh5 {[%emt 0:00:13]} 13. Qxh5 {[%emt 0:03:29]} Nxh5 {[%emt 0:00:10]} 14. Ne5 {[%emt 0:00:03]} Nf6 {[%emt 0:05:38]} 15. O-O {[%emt 0:29:41]} O-O {[%emt 0:13:20]} 16. Be2 $146 {[%emt 0:05:26]} ({Predecessor:} 16. Rfe1 Rd8 17. b4 Bc7 18. Nf3 Bd7 19. a4 {½-½ (41) Feher,G (2380)-Dovzik,J (2410) Heves 1997}) 16... Rd8 {[%emt 0:01:28]} 17. Rfd1 {[%emt 0:03:28]} Bd7 {[%emt 0:02:33]} 18. Nxd7 {[%emt 0:02:15]} Rxd7 {[%emt 0:00:12]} 19. Bf3 {[%emt 0:06:59]} Bc7 $11 {[%emt 0:05:39]} 20. c3 {[%emt 0:00:59]} Rad8 {[%emt 0:00:16]} 21. Be3 {[%emt 0:02:37]} Nd5 {[%emt 0:01:03]} 22. Re1 {[%emt 0:03:14]} Kf8 {[%emt 0:10:06]} 23. a4 {[%emt 0:03:23]} a6 {[%emt 0:05:14]} 24. g3 {[%emt 0:09:34]} Bb6 {[%emt 0:06:08]} 25. Bd2 {[%emt 0:03:39]} Kg8 {[%emt 0:03:16]} 26. Rad1 {[%emt 0:03:10]} Kf8 {[%emt 0:07:36]} 27. Kg2 {[%emt 0:00:52]} 1/2-1/2

[Event "WYCC 2018 O14"]
[Site "Halkidiki"]
[Date "2018.10.22"]
[Round "4"]
[White "Antonica, Dragos-Andrei"]
[Black "Gomez Barrera, Gonzalo Andres"]
[Result "1-0"]
[ECO "E94"]
[WhiteElo "2061"]
[BlackElo "1843"]
[Annotator "NA"]
[PlyCount "105"]
[EventDate "2018.10.20"]
[EventType "swiss"]
[EventCountry "GRE"]
[SourceTitle "playchess.com"]
[Source "ChessBase"]
[SourceQuality "1"]
[TimeControl "40/5400+30:1800+30"]

1. Nf3 {[%emt 0:00:00]} Nf6 {[%emt 0:00:03]} 2. c4 {[%emt 0:00:00]} d6 {[%emt 0:00:46]} 3. d4 {[%emt 0:01:36]} g6 {[%emt 0:02:13]} 4. Nc3 {[%emt 0:00:18]} Bg7 {[%emt 0:00:43]} 5. e4 {[%emt 0:02:11]} O-O {[%emt 0:00:49]} 6. Be2 {[%emt 0:00:13]} e5 {[%emt 0:02:50]} 7. O-O {[%emt 0:00:35]} a5 {[%emt 0:10:43]} 8. Bg5 {[%emt 0:17:40]} h6 {[%emt 0:11:12]} 9. dxe5 {[%emt 0:22:53]} hxg5 {[%emt 0:00:10]} 10. exf6 {[%emt 0:00:02]} Bxf6 {[%emt 0:00:17]} 11. Qd2 {[%emt 0:00:05]} g4 {[%emt 0:02:03]} 12. Nd4 {[%emt 0:01:36]} Nc6 {[%emt 0:04:16]} 13. Ndb5 {[%emt 0:10:58]} Ne5 {[%emt 0:16:24]} 14. Rad1 {[%emt 0:18:36]} Be6 {[%emt 0:01:39]} 15. b3 {[%emt 0:03:25]} Kg7 {[%emt 0:03:34]} 16. Nd4 {[%emt 0:07:03]} Rh8 {[%emt 0:03:15]} 17. f4 {[%emt 0:03:29]} gxf3 {[%emt 0:00:54]} 18. Nxf3 {[%emt 0:00:10]} Nxf3+ {[%emt 0:01:05]} 19. Rxf3 {[%emt 0:00:41]} Be5 {[%emt 0:00:11]} 20. h3 {[%emt 0:00:29]} c6 {[%emt 0:04:31]} 21. Rdf1 {[%emt 0:00:52]} Qh4 {[%emt 0:00:31]} 22. Bd3 {[%emt 0:03:43]} Raf8 {[%emt 0:06:25]} 23. Ne2 {[%emt 0:02:36]} Bg4 {[%emt 0:00:29]} 24. Rf4 {[%emt 0:00:15]} Qh6 {[%emt 0:20:29]} 25. hxg4 {[%emt 0:00:48]} g5 {[%emt 0:00:11]} 26. R4f3 {[%emt 0:01:05]} Qh4 {[%emt 0:00:06]} 27. Rh3 {[%emt 0:00:33]} Qxg4 {[%emt 0:00:20]} 28. Rff3 {[%emt 0:00:19]} Rxh3 {[%emt 0:00:46]} 29. Rxh3 {[%emt 0:00:02]} Rh8 {[%emt 0:00:11]} 30. Rxh8 {[%emt 0:00:44]} Kxh8 {[%emt 0:00:01]} 31. Qe3 {[%emt 0:00:39]} Kg7 {[%emt 0:05:30]} 32. Qh3 {[%emt 0:00:24]} Qxh3 {[%emt 0:00:10]} 33. gxh3 {[%emt 0:00:01]} Kh6 {[%emt 0:00:01]} 34. Kg2 {[%emt 0:00:13]} Kh5 {[%emt 0:00:27]} 35. Ng3+ {[%emt 0:00:42]} Kg6 {[%emt 0:00:49]} 36. Kf3 {[%emt 0:00:39]} Kf6 {[%emt 0:00:16]} 37. Nf5 {[%emt 0:01:10]} Ke6 {[%emt 0:00:11]} 38. Kg4 {[%emt 0:00:33]} f6 {[%emt 0:00:18]} 39. Kh5 {[%emt 0:00:07]} Bc3 {[%emt 0:00:12]} 40. Kg6 {[%emt 0:00:00]} Ke5 {[%emt 0:00:00]} 41. Kf7 {[%emt 0:04:10]} b6 {[%emt 0:02:54]} 42. Ke7 {[%emt 0:08:20]} d5 {[%emt 0:02:08]} 43. exd5 {[%emt 0:02:27]} cxd5 {[%emt 0:00:53]} 44. cxd5 {[%emt 0:05:10]} Kxd5 {[%emt 0:00:07]} 45. Ng3 {[%emt 0:02:36]} Be5 {[%emt 0:11:54]} 46. Nh5 {[%emt 0:03:05]} Kd4 {[%emt 0:00:22]} 47. Bf5 {[%emt 0:00:50]} Kc3 {[%emt 0:01:09]} 48. Nxf6 {[%emt 0:01:58]} Kb2 {[%emt 0:00:25]} 49. a4 {[%emt 0:00:10]} Kxb3 {[%emt 0:00:24]} 50. Bd7 {[%emt 0:00:03]} Kc4 {[%emt 0:00:20]} 51. Ke6 {[%emt 0:00:13]} Kd4 {[%emt 0:00:21]} 52. Kf5 {[%emt 0:00:09]} Bf4 {[%emt 0:00:52]} 53. Nh7 1-0

[Event "WYCC 2018 O14"]
[Site "Halkidiki"]
[Date "2018.10.22"]
[Round "4"]
[White "Runets, Ivan"]
[Black "Ognean, Mihnea-Ionut"]
[Result "1/2-1/2"]
[ECO "A46"]
[WhiteElo "2047"]
[BlackElo "2291"]
[Annotator "NA"]
[PlyCount "89"]
[EventDate "2018.10.20"]
[EventType "swiss"]
[EventCountry "GRE"]
[SourceTitle "playchess.com"]
[Source "ChessBase"]
[SourceQuality "1"]
[TimeControl "40/5400+30:1800+30"]

1. d4 {[%emt 0:00:00]} Nf6 {[%emt 0:00:00]} 2. Nf3 {[%emt 0:00:56]} e6 {[%emt 0:00:00]} 3. Bf4 {[%emt 0:00:45]} c5 {[%emt 0:00:27]} 4. c3 {[%emt 0:00:15]} d5 {[%emt 0:00:07]} 5. e3 {[%emt 0:00:08]} Nc6 {[%emt 0:00:06]} 6. Nbd2 {[%emt 0:00:37]} Bd6 {[%emt 0:00:12]} 7. Bg3 {[%emt 0:00:12]} O-O {[%emt 0:00:15]} 8. Bd3 {[%emt 0:03:00]} b6 {[%emt 0:00:07]} 9. Ne5 {[%emt 0:01:41]} Bb7 {[%emt 0:00:09]} 10. O-O {[%emt 0:01:01]} Qc7 {[%emt 0:00:19]} 11. f4 {[%emt 0:06:27]} Ne7 {[%emt 0:00:35] D02: 1 d4 d5 2 Nf3 sidelines, including 2...Nf6 3 g3 and 2...Nf6 3 Bf4} 12. Qf3 {[%emt 0:11:39] LiveBook: 11 Games} (12. Qb1 Qc8 13. Bh4 Nf5 14. Bxf5 exf5 15. Bxf6 gxf6 16. Nef3 Qe6 17. Re1 Ba6 18. Nh4 cxd4 19. exd4 {1-0 (28) Korobov,A (2692)-Dominguez Perez,L (2739) Doha 2016}) 12... Nf5 {[%emt 0:01:25]} 13. Bf2 {[%emt 0:05:11]} Be7 {[%emt 0:01:30]} 14. Qh3 {[%emt 0:06:52]} Ne4 {[%emt 0:15:28]} 15. Nxe4 $146 {[%emt 0:15:00]} ({Predecessor:} 15. Rad1 Rad8 16. Nef3 cxd4 17. Nxd4 Nxd4 18. cxd4 {0-1 (42) Morschel,D (2290)-Karachisaridis,V (2243) ICCF email 2006}) 15... dxe4 {[%emt 0:00:07]} 16. Be2 {[%emt 0:00:18]} f6 {[%emt 0:03:55]} 17. Bc4 {[%emt 0:03:19]} Bd5 {[%emt 0:21:17]} 18. Bxd5 {[%emt 0:00:18]} exd5 {[%emt 0:00:04]} 19. Qxf5 {[%emt 0:00:45]} fxe5 {[%emt 0:00:05]} 20. Qe6+ $18 {[%emt 0:03:53]} ({Don't play} 20. Qxe5 $6 Qd7 $16) 20... Kh8 {[%emt 0:00:27]} 21. dxe5 {[%emt 0:00:28]} Rad8 {[%emt 0:04:29]} 22. Rad1 {[%emt 0:03:26]} Qb7 {[%emt 0:02:10]} 23. Rd2 {[%emt 0:02:09]} Rfe8 {[%emt 0:01:46]} 24. Qg4 {[%emt 0:01:23]} Qc6 {[%emt 0:03:41]} 25. Rfd1 {[%emt 0:04:40]} b5 {[%emt 0:02:10]} 26. Bh4 {[%emt 0:02:08]} Bxh4 {[%emt 0:02:28]} 27. Qxh4 {[%emt 0:02:09]} Qe6 {[%emt 0:11:25]} 28. Qh5 {[%emt 0:02:28]} a5 {[%emt 0:04:55]} 29. Qe2 {[%emt 0:02:35]} Qc6 {[%emt 0:01:15]} 30. a4 {[%emt 0:03:10]} bxa4 {[%emt 0:01:34]} 31. c4 {[%emt 0:00:20]} d4 {[%emt 0:00:38]} 32. exd4 {[%emt 0:01:46]} cxd4 {[%emt 0:00:04]} 33. Rxd4 {[%emt 0:02:01]} Rxd4 {[%emt 0:00:16]} 34. Rxd4 {[%emt 0:00:05]} Qb6 {[%emt 0:00:06]} 35. Qf2 {[%emt 0:01:20]} e3 {[%emt 0:02:02]} 36. Qxe3 {[%emt 0:00:08]} Qxb2 {[%emt 0:00:03]} 37. Qd2 {[%emt 0:00:46]} Qb6 {[%emt 0:00:37]} 38. Kf1 {[%emt 0:04:03]} a3 {[%emt 0:01:27]} 39. Rd3 {[%emt 0:02:02]} Qb1+ {[%emt 0:05:16]} 40. Ke2 {[%emt 0:00:00]} a2 {[%emt 0:00:00]} 41. Rd8 {[%emt 0:01:13]} h6 {[%emt 0:00:57]} 42. Rxe8+ {[%emt 0:00:06]} Kh7 {[%emt 0:00:04]} 43. Qd5 {[%emt 0:20:32]} a1=Q {[%emt 0:16:36]} 44. Qg8+ {[%emt 0:00:16]} Kg6 {[%emt 0:00:05]} 45. Qe6+ {[%emt 0:02:08]} 1/2-1/2

[Event "WYCC 2018 O14"]
[Site "Halkidiki"]
[Date "2018.10.22"]
[Round "4"]
[White "Karadzhov, Ivan"]
[Black "Czopor, Maciej"]
[Result "0-1"]
[ECO "E53"]
[WhiteElo "2040"]
[BlackElo "2219"]
[Annotator "NA"]
[PlyCount "88"]
[EventDate "2018.10.20"]
[EventType "swiss"]
[EventCountry "GRE"]
[SourceTitle "playchess.com"]
[Source "ChessBase"]
[SourceQuality "1"]
[TimeControl "40/5400+30:1800+30"]

1. d4 {[%emt 0:00:00]} Nf6 {[%emt 0:00:00]} 2. c4 {[%emt 0:00:00]} e6 {[%emt 0:00:13]} 3. Nc3 {[%emt 0:00:12]} Bb4 {[%emt 0:00:12]} 4. e3 {[%emt 0:00:19]} O-O {[%emt 0:00:19]} 5. Bd3 {[%emt 0:00:22]} d5 {[%emt 0:00:22]} 6. Nf3 {[%emt 0:00:33]} c5 {[%emt 0:01:22]} 7. O-O {[%emt 0:00:46]} cxd4 {[%emt 0:09:36]} 8. exd4 {[%emt 0:03:06]} dxc4 {[%emt 0:00:38]} 9. Bxc4 {[%emt 0:00:36]} b6 {[%emt 0:01:08]} 10. Be3 {[%emt 0:12:13] LiveBook: 3 Games E54: Nimzoindisch (Moderne Variante)} (10. Bg5 Bb7 11. Rc1 Nc6 12. a3 Be7 13. Ba2 Rc8 14. Re1 h6 15. Bh4 Nh5 16. Bg3 Nxg3 17. hxg3 Bf6 18. d5 exd5 19. Nxd5 Bxb2 20. Rc2 Bxa3 21. Rd2 Bc5 22. Nc3 {0-1 (32) Flores,D (2614)-Shankland,S (2717) Montevideo 2018}) 10... Bb7 {[%emt 0:02:46]} 11. Rc1 {[%emt 0:02:46]} Nbd7 {[%emt 0:04:14]} 12. Qe2 {[%emt 0:03:14]} Rc8 $146 {[%emt 0:12:30]} ({Vorgänger:} 12... a6 13. Ne5 b5 14. Bb3 Bxc3 15. Rxc3 Nd5 16. Rcc1 Nxe5 17. dxe5 Qh4 18. f3 Rfd8 {0-1 (52) Booker,B-Orlov,G (2420) Vancouver 1998}) 13. Ba6 {[%emt 0:05:09]} Bxa6 {[%emt 0:03:13]} 14. Qxa6 {[%emt 0:00:59]} Bxc3 {[%emt 0:03:24]} 15. bxc3 {[%emt 0:02:09]} Qc7 {[%emt 0:04:43]} 16. c4 {[%emt 0:07:18]} e5 {[%emt 0:16:28]} 17. d5 {[%emt 0:23:18]} e4 {[%emt 0:10:47]} 18. Nd4 {[%emt 0:04:54]} Ng4 {[%emt 0:01:05]} 19. g3 {[%emt 0:00:52]} Nc5 {[%emt 0:00:56]} 20. Qa3 {[%emt 0:01:12]} Nd3 {[%emt 0:06:16]} 21. Rc2 $17 {[%emt 0:01:24]} (21. Nc6 $11 {keeps the balance.}) 21... Nge5 {[%emt 0:02:50]} 22. f3 {[%emt 0:14:30]} exf3 {[%emt 0:03:42]} 23. Rc3 {[%emt 0:06:31]} Nxc4 {[%emt 0:10:42]} 24. Qb3 {[%emt 0:02:11]} Nde5 {[%emt 0:01:19]} 25. Nxf3 {[%emt 0:01:19]} Qd7 {[%emt 0:01:04]} 26. Nxe5 {[%emt 0:01:13]} Nxe5 {[%emt 0:00:03]} 27. Bf4 {[%emt 0:00:57]} Ng6 {[%emt 0:00:59]} 28. Rd3 {[%emt 0:02:11]} Rfe8 {[%emt 0:00:21]} 29. Qd1 {[%emt 0:03:05]} h6 {[%emt 0:00:56]} 30. d6 {[%emt 0:00:45]} Re6 {[%emt 0:01:13]} 31. Rf2 {[%emt 0:00:48]} Rce8 {[%emt 0:00:23]} 32. Kg2 {[%emt 0:00:31]} Qc6+ {[%emt 0:01:05]} 33. Qf3 {[%emt 0:00:13]} Nxf4+ {[%emt 0:00:33]} 34. gxf4 {[%emt 0:00:04]} Rxd6 {[%emt 0:00:42]} 35. Rxd6 {[%emt 0:00:54]} Qxd6 {[%emt 0:00:05]} 36. f5 {[%emt 0:00:31]} Qf6 {[%emt 0:00:28]} 37. Qg3 {[%emt 0:00:48]} Re5 {[%emt 0:00:49]} 38. Qg4 {[%emt 0:00:29]} Qc6+ {[%emt 0:00:32]} 39. Rf3 {[%emt 0:00:27]} Re2+ {[%emt 0:00:47]} 40. Kh3 {[%emt 0:00:00]} Qf6 {[%emt 0:00:00]} 41. Qc4 {[%emt 0:02:06]} Qe5 {[%emt 0:05:14]} 42. Qc8+ {[%emt 0:01:55]} Kh7 {[%emt 0:00:17]} 43. Rg3 {[%emt 0:00:57]} Rf2 {[%emt 0:00:34]} 44. Qd7 {[%emt 0:01:34]} Qe2 {[%emt 0:04:39]} 0-1